Workbook

Sheet Početak
B1: OSNOVNI PODACI O OVOM PREDLOŠKU
B2: Koristite radni list „Mesečni budžet za koledž“ za praćenje prihoda, troškova i protoka novca.
B3: Unesite mesečne prihode i troškove za izračunavanje ukupnog prihoda i troškova.
B4: Protok novca se automatski izračunava i grafikon protoka novca se automatski ažurira.
B5: Izaberite klizač da biste dobili dijagrame prihoda, troškova i protoka novca za mesec i godinu.
B6: Napomena:
B7: Dodatna uputstva navedena su u koloni A na radnom listu. Taj tekst je namerno skriven. Da biste uklonili tekst, izaberite kolonu A, a zatim izaberite stavku „IZBRIŠI“. Da biste otkrili tekst, izaberite kolonu A, a zatim promenite boju fonta.

Sheet Mesečni budžet za koledž
A1: Kreirajte mesečni budžet za fakultet u ovoj radnoj svesci. Naslov ovog radnog lista nalazi se u ćeliji B1 sa desne strane. Korisna uputstva o tome kako da koristite ovaj radni list nalaze se u ćelijama u ovoj koloni. Sledeće uputstvo se nalazi u ćeliji A4. | B1: Mesečni budžet za koledž
A4: Oznaka „Predviđeni prihod“ nalazi se u ćeliji s desne strane, a oznaka „Predviđeni troškovi“ u ćeliji E4, dok se oznaka „Protok novca“ nalazi u ćeliji M4. | B4: =chart_calcs!$D$6 -> prihod u january: | E4: =chart_calcs!$D$7 -> troškovi u january: | M4: =chart_calcs!$D$8 -> protok gotovine u january:
A5: Prihodi se automatski ažuriraju u ćeliji s desne strane, troškovi u ćeliji E5 i protok novca u ćeliji M5. | B5: =" "&chart_calcs!$F$6 ->  | E5: =" "&chart_calcs!$F$7 ->  | M5: =" "&chart_calcs!$F$8 -> 169 RSD
A6: Prstenasti grafikon koji prikazuje rezime prihoda u ćeliji s desne strane, rezime troškova u ćeliji E6 i trakasti grafikon koji prikazuje pozitivni i negativni novčani tok u ćeliji M6 se automatski ažuriraju. Sledeće uputstvo se nalazi u ćeliji A17. | B6: Prstenasti grafikon koji prikazuje rezime prihoda za izabrani mesec ili godinu nalazi se u ovoj ćeliji | E6: Prstenasti grafikon koji prikazuje rezime troškova za izabrani mesec ili godinu | M6: Trakasti grafikon koji prikazuje pozitivni i negativni protok novca za izabrani mesec ili godinu se nalazi u ovoj ćeliji.
B16: Linijski grafikon koji prikazuje protok novca za izabrani mesec ili godinu nalazi se u ovoj ćeliji.
A17: Linijski grafikon protoka novca nalazi se u ćeliji sa desne strane. Sledeće uputstvo se nalazi u ćeliji A21.
A21: Izaberite klizač s desne strane da biste dobili podatke i grafikone mesečnih ili godišnjih prihoda, troškova i novčanog toka. Sledeće uputstvo se nalazi u ćeliji A25. | B21: Klizač se nalazi u ovoj ćeliji.
A25: Izaberite mesec u ćeliji sa desne strane Pritisnite tastere ALT+STRELICA NADOLE za opcije, a zatim tastere STRELICA NADOLE i ENTER da biste napravili izbor. | B25: JAN
A26: Izabrani period će se automatski ažurirati u ćeliji P26. | P26: =SelectedPeriod -> JAN
A27: Oznake prikazane u ovom redu su: oznaka „Mesečni protok novca nakon troškova“ u ćeliji s desne strane, meseci u ćelijama od C27 do N27, godina u ćeliji O27 i procenat povećanja u ćeliji P27. | B27: Mesečni protok novca nakon troškova | C27: =FirstMonth -> JAN | D27: =NextMonth -> FEB | E27: MAR | F27: APR | G27: MAY | H27: JUN | I27: JUL | J27: AUG | K27: SEP | L27: OCT | M27: NOV | N27: DEC | O27: GODINA | P27: % POV
A28: Oznaka „Protok novca“ nalazi se u ćeliji s desne strane. Novčani tok za svaki mesec se automatski izračunava u ćelijama C28 do N28, godišnji iznos u ćeliji O28 i procenat povećanja u ćeliji P28. Mini-grafikon se automatski ažurira u ćeliji Q28. | B28: Protok novca | C28: =C37-C72 -> 169 | D28: 69 | E28: 192 | F28: 199 | G28: 204 | H28: -771 | I28: 124 | J28: 154 | K28: -721 | L28: 109 | M28: 34 | N28: -61 | O28: =SUM(C28:N28) -> -299 | P28: =INDEX($C28:$O28,,SelectedPeriodColumn)/INDEX($C$37:$O$37,,SelectedPeriodColumn) -> 13.8%
A29: Oznaka „Kumulativnog protoka novca“ nalazi se u ćeliji s desne strane. Kumulativni protok novca za svaki mesec se automatski izračunava u ćelijama C29 do N29, godišnji iznos u ćeliji O29 i procenat povećanja u ćeliji P29. Mini-grafikon se automatski ažurira u ćeliji Q29. Sledeće uputstvo se nalazi u ćeliji A31. | B29: Kumulativni protok novca | C29: =SUM($C$28:C$28) -> 169 | D29: =SUM($C$28:D$28) -> 238 | E29: =SUM($C$28:E$28) -> 430 | F29: =SUM($C$28:F$28) -> 629 | G29: =SUM($C$28:G$28) -> 833 | H29: =SUM($C$28:H$28) -> 62 | I29: =SUM($C$28:I$28) -> 186 | J29: =SUM($C$28:J$28) -> 340 | K29: =SUM($C$28:K$28) -> -381 | L29: =SUM($C$28:L$28) -> -272 | M29: =SUM($C$28:M$28) -> -238 | N29: =SUM($C$28:N$28) -> -299
A31: Oznaka „Mesečni prihod“ nalazi se u ćeliji s desne strane, meseci u ćelijama od C31 do N31, godina u ćeliji O31, i oznaka procenta povećanja u ćeliji P31. Unesite stavke mesečnih prihoda u ćelije od B32 do B36 i mesečne količine u ćelije od C32 do N36. Godišnji prihod se automatski izračunava u ćelijama O32 do O36 a procenat povećanja u ćelijama P32 do P36. Sledeće uputstvo se nalazi u ćeliji A37. | B31: MESEČNI PRIHOD | C31: =FirstMonth -> JAN | D31: =NextMonth -> FEB | E31: MAR | F31: APR | G31: MAY | H31: JUN | I31: JUL | J31: AUG | K31: SEP | L31: OCT | M31: NOV | N31: DEC | O31: GODINA | P31: % POV
B32: Finansijska pomoć (donacije, stipendije, krediti) koji su vam isplaćeni | C32: 0 | D32: 0 | E32: 750 | F32: 750 | G32: 750 | H32: 750 | I32: 750 | J32: 750 | K32: 750 | L32: 750 | M32: 750 | N32: 750 | O32: =SUM(C32:N32) -> 7,500 | P32: =INDEX($C32:$O32,,SelectedPeriodColumn)/INDEX($C$37:$O$37,,SelectedPeriodColumn) -> 0.0%
B33: Plate nakon oporezivanja | C33: 450 | D33: 450 | E33: 450 | F33: 450 | G33: 450 | H33: 450 | I33: 450 | J33: 450 | K33: 550 | L33: 350 | M33: 350 | N33: 350 | O33: 5,200 | P33: =INDEX($C33:$O33,,SelectedPeriodColumn)/INDEX($C$37:$O$37,,SelectedPeriodColumn) -> 36.7%
B34: Finansijska pomoć od porodice | C34: 200 | D34: 200 | E34: 1,000 | F34: 350 | G34: 350 | H34: 350 | I34: 350 | J34: 350 | K34: 350 | L34: 350 | M34: 350 | N34: 350 | O34: 4,550 | P34: =INDEX($C34:$O34,,SelectedPeriodColumn)/INDEX($C$37:$O$37,,SelectedPeriodColumn) -> 16.3%
B35: Isplate iz ušteđevine | C35: 500 | D35: 350 | E35: 150 | F35: 0 | G35: 0 | H35: 0 | I35: 0 | J35: 0 | K35: 0 | L35: 0 | M35: 0 | N35: 0 | O35: 1,000 | P35: =INDEX($C35:$O35,,SelectedPeriodColumn)/INDEX($C$37:$O$37,,SelectedPeriodColumn) -> 40.8%
B36: Ostalo (podrška za dete, javnu pomoć, pokloni itd.) | C36: 75 | D36: 75 | E36: 75 | F36: 75 | G36: 75 | H36: 75 | I36: 75 | J36: 75 | K36: 75 | L36: 75 | M36: 75 | N36: 75 | O36: 900 | P36: =INDEX($C36:$O36,,SelectedPeriodColumn)/INDEX($C$37:$O$37,,SelectedPeriodColumn) -> 6.1%
A37: Oznaka „Ukupan prihod“ nalazi se u ćeliji sa desne strane. Ukupni prihodi za svaki mesec se automatski izračunava u ćelijama C37 do N37, godišnji prihod u ćeliji O37 i procenat povećanja u ćeliji P37. Mini-grafikon se automatski ažurira u ćeliji Q37. Sledeće uputstvo se nalazi u ćeliji A39. | B37: UKUPAN PRIHOD | C37: =SUM(C32:C36) -> 1,225 | D37: 1,075 | E37: 2,425 | F37: 1,625 | G37: 1,625 | H37: 1,625 | I37: 1,625 | J37: 1,625 | K37: 1,725 | L37: 1,525 | M37: 1,525 | N37: 1,525 | O37: 19,150 | P37: =INDEX($C37:$O37,,SelectedPeriodColumn)/INDEX($C$37:$O$37,,SelectedPeriodColumn) -> 100.0%
A39: Oznaka „Mesečni troškovi“ nalazi se u ćeliji s desne strane, meseci u ćelijama od C39 do N39, godina u ćeliji O39, i oznaka procenta povećanja u ćeliji P39. | B39: MESEČNI TROŠAK | C39: =FirstMonth -> JAN | D39: =NextMonth -> FEB | E39: MAR | F39: APR | G39: MAY | H39: JUN | I39: JUL | J39: AUG | K39: SEP | L39: OCT | M39: NOV | N39: DEC | O39: GODINA | P39: % POV
A40: Unesite ili izmenite stavku troškova u ćeliji s desne strane i mesečne iznose u ćelijama C40 do N43. Godišnji iznos se automatski izračunava u ćelijama O40 do O43 a procenat povećanja u ćelijama P40 do P43. Mini-grafikon se automatski ažurira u ćeliji Q40. Sledeće uputstvo se nalazi u ćeliji A45. | B40: smeštaj i ishrana | C40: =SUM(C41:C43) -> 565 | D40: 565 | E40: 565 | F40: 565 | G40: 565 | H40: 565 | I40: 565 | J40: 565 | K40: 565 | L40: 565 | M40: 565 | N40: 565 | O40: =SUM(C40:N40) -> 6,780 | P40: =INDEX($C40:$O40,,SelectedPeriodColumn)/INDEX($C$72:$O$72,,SelectedPeriodColumn) -> 53.5%
C41: 315 | D41: 315 | E41: 315 | F41: 315 | G41: 315 | H41: 315 | I41: 315 | J41: 315 | K41: 315 | L41: 315 | M41: 315 | N41: 315 | O41: =SUM(C41:N41) -> 3,780 | P41: =INDEX($C41:$O41,,SelectedPeriodColumn)/INDEX($C$72:$O$72,,SelectedPeriodColumn) -> 29.8%
C42: 200 | D42: 200 | E42: 200 | F42: 200 | G42: 200 | H42: 200 | I42: 200 | J42: 200 | K42: 200 | L42: 200 | M42: 200 | N42: 200 | O42: =SUM(C42:N42) -> 2,400 | P42: =INDEX($C42:$O42,,SelectedPeriodColumn)/INDEX($C$72:$O$72,,SelectedPeriodColumn) -> 18.9%
C43: 50 | D43: 50 | E43: 50 | F43: 50 | G43: 50 | H43: 50 | I43: 50 | J43: 50 | K43: 50 | L43: 50 | M43: 50 | N43: 50 | O43: =SUM(C43:N43) -> 600 | P43: =INDEX($C43:$O43,,SelectedPeriodColumn)/INDEX($C$72:$O$72,,SelectedPeriodColumn) -> 4.7%
A45: Unesite ili izmenite stavku troškova u ćeliji s desne strane i mesečne iznose u ćelijama C45 do N47. Godišnji iznos se automatski izračunava u ćelijama O45 do O47 a procenat povećanja u ćelijama P45 do P47. Mini-grafikon se automatski ažurira u ćeliji Q45. Sledeće uputstvo se nalazi u ćeliji A49. | B45: obuka i naknade | C45: =SUM(C46:C47) -> 0 | D45: 0 | E45: 750 | F45: 0 | G45: 0 | H45: 650 | I45: 0 | J45: 0 | K45: 650 | L45: 0 | M45: 0 | N45: 0 | O45: =SUM(C45:N45) -> 2,050 | P45: =INDEX($C45:$O45,,SelectedPeriodColumn)/INDEX($C$72:$O$72,,SelectedPeriodColumn) -> 0.0%
C46: 0 | D46: 0 | E46: 500 | F46: 0 | G46: 0 | H46: 500 | I46: 0 | J46: 0 | K46: 500 | L46: 0 | M46: 0 | N46: 0 | O46: =SUM(C46:N46) -> 1,500 | P46: =INDEX($C46:$O46,,SelectedPeriodColumn)/INDEX($C$72:$O$72,,SelectedPeriodColumn) -> 0.0%
C47: 0 | D47: 0 | E47: 250 | F47: 0 | G47: 0 | H47: 150 | I47: 0 | J47: 0 | K47: 150 | L47: 0 | M47: 0 | N47: 0 | O47: =SUM(C47:N47) -> 550 | P47: =INDEX($C47:$O47,,SelectedPeriodColumn)/INDEX($C$72:$O$72,,SelectedPeriodColumn) -> 0.0%
A49: Unesite ili izmenite stavku troškova u ćeliji s desne strane i mesečne iznose u ćelijama C49 do N51. Godišnji iznos se automatski izračunava u ćelijama O49 do O51 a procenat povećanja u ćelijama P49 do P51. Mini-grafikon se automatski ažurira u ćeliji Q49. Sledeće uputstvo se nalazi u ćeliji A53. | B49: knjige i zalihe | C49: =SUM(C50:C51) -> 0 | D49: 0 | E49: 325 | F49: 20 | G49: 20 | H49: 325 | I49: 10 | J49: 10 | K49: 400 | L49: 15 | M49: 15 | N49: 15 | O49: =SUM(C49:N49) -> 1,155 | P49: =INDEX($C49:$O49,,SelectedPeriodColumn)/INDEX($C$72:$O$72,,SelectedPeriodColumn) -> 0.0%
C50: 0 | D50: 0 | E50: 225 | F50: 0 | G50: 0 | H50: 275 | I50: 0 | J50: 0 | K50: 325 | L50: 0 | M50: 0 | N50: 0 | O50: =SUM(C50:N50) -> 825 | P50: =INDEX($C50:$O50,,SelectedPeriodColumn)/INDEX($C$72:$O$72,,SelectedPeriodColumn) -> 0.0%
C51: 0 | D51: 0 | E51: 100 | F51: 20 | G51: 20 | H51: 50 | I51: 10 | J51: 10 | K51: 75 | L51: 15 | M51: 15 | N51: 15 | O51: =SUM(C51:N51) -> 330 | P51: =INDEX($C51:$O51,,SelectedPeriodColumn)/INDEX($C$72:$O$72,,SelectedPeriodColumn) -> 0.0%
A53: Unesite ili izmenite stavku troškova u ćeliji s desne strane i mesečne iznose u ćelijama C53 do N5. Godišnji iznos se automatski izračunava u ćelijama O53do O57 a procenat povećanja u ćelijama P53 do P57. Mini-grafikon se automatski ažurira u ćeliji Q53. Sledeće uputstvo se nalazi u ćeliji A59. | B53: Prevoz | C53: =SUM(C54:C57) -> 224 | D53: 174 | E53: 174 | F53: 219 | G53: 174 | H53: 174 | I53: 274 | J53: 219 | K53: 174 | L53: 174 | M53: 224 | N53: 269 | O53: =SUM(C53:N53) -> 2,473 | P53: =INDEX($C53:$O53,,SelectedPeriodColumn)/INDEX($C$72:$O$72,,SelectedPeriodColumn) -> 21.2%
C54: 30 | D54: 30 | E54: 30 | F54: 75 | G54: 30 | H54: 30 | I54: 30 | J54: 75 | K54: 30 | L54: 30 | M54: 30 | N54: 75 | O54: =SUM(C54:N54) -> 495 | P54: =INDEX($C54:$O54,,SelectedPeriodColumn)/INDEX($C$72:$O$72,,SelectedPeriodColumn) -> 2.8%
C55: 129 | D55: 129 | E55: 129 | F55: 129 | G55: 129 | H55: 129 | I55: 129 | J55: 129 | K55: 129 | L55: 129 | M55: 129 | N55: 129 | O55: =SUM(C55:N55) -> 1,548 | P55: =INDEX($C55:$O55,,SelectedPeriodColumn)/INDEX($C$72:$O$72,,SelectedPeriodColumn) -> 12.2%
C56: 15 | D56: 15 | E56: 15 | F56: 15 | G56: 15 | H56: 15 | I56: 15 | J56: 15 | K56: 15 | L56: 15 | M56: 15 | N56: 15 | O56: =SUM(C56:N56) -> 180 | P56: =INDEX($C56:$O56,,SelectedPeriodColumn)/INDEX($C$72:$O$72,,SelectedPeriodColumn) -> 1.4%
C57: 50 | D57: 0 | E57: 0 | F57: 0 | G57: 0 | H57: 0 | I57: 100 | J57: 0 | K57: 0 | L57: 0 | M57: 50 | N57: 50 | O57: =SUM(C57:N57) -> 250 | P57: =INDEX($C57:$O57,,SelectedPeriodColumn)/INDEX($C$72:$O$72,,SelectedPeriodColumn) -> 4.7%
A59: Unesite ili izmenite stavku troškova u ćeliji s desne strane i mesečne iznose u ćelijama C59 do N65. Godišnji iznos se automatski izračunava u ćelijama O59 do O65 a procenat povećanja u ćelijama P59 do P65. Mini-grafikon se automatski ažurira u ćeliji Q59. Sledeće uputstvo se nalazi u ćeliji A67. | B59: Opcionalni | C59: =SUM(C60:C65) -> 69 | D59: 69 | E59: 169 | F59: 369 | G59: 419 | H59: 444 | I59: 419 | J59: 419 | K59: 394 | L59: 394 | M59: 419 | N59: 469 | O59: =SUM(C59:N59) -> 4,053 | P59: =INDEX($C59:$O59,,SelectedPeriodColumn)/INDEX($C$72:$O$72,,SelectedPeriodColumn) -> 6.5%
C60: 0 | D60: 0 | E60: 0 | F60: 50 | G60: 100 | H60: 100 | I60: 100 | J60: 100 | K60: 75 | L60: 75 | M60: 100 | N60: 100 | O60: 800 | P60: =INDEX($C60:$O60,,SelectedPeriodColumn)/INDEX($C$72:$O$72,,SelectedPeriodColumn) -> 0.0%
C61: 69 | D61: 69 | E61: 69 | F61: 69 | G61: 69 | H61: 69 | I61: 69 | J61: 69 | K61: 69 | L61: 69 | M61: 69 | N61: 69 | O61: 828 | P61: =INDEX($C61:$O61,,SelectedPeriodColumn)/INDEX($C$72:$O$72,,SelectedPeriodColumn) -> 6.5%
C62: 0 | D62: 0 | E62: 0 | F62: 0 | G62: 0 | H62: 25 | I62: 0 | J62: 0 | K62: 0 | L62: 0 | M62: 0 | N62: 50 | O62: 75 | P62: =INDEX($C62:$O62,,SelectedPeriodColumn)/INDEX($C$72:$O$72,,SelectedPeriodColumn) -> 0.0%
C63: 0 | D63: 0 | E63: 100 | F63: 100 | G63: 100 | H63: 100 | I63: 100 | J63: 100 | K63: 100 | L63: 100 | M63: 100 | N63: 100 | O63: 1,000 | P63: =INDEX($C63:$O63,,SelectedPeriodColumn)/INDEX($C$72:$O$72,,SelectedPeriodColumn) -> 0.0%
C64: 0 | D64: 0 | E64: 0 | F64: 50 | G64: 50 | H64: 50 | I64: 50 | J64: 50 | K64: 50 | L64: 50 | M64: 50 | N64: 50 | O64: 450 | P64: =INDEX($C64:$O64,,SelectedPeriodColumn)/INDEX($C$72:$O$72,,SelectedPeriodColumn) -> 0.0%
C65: 0 | D65: 0 | E65: 0 | F65: 100 | G65: 100 | H65: 100 | I65: 100 | J65: 100 | K65: 100 | L65: 100 | M65: 100 | N65: 100 | O65: 900 | P65: =INDEX($C65:$O65,,SelectedPeriodColumn)/INDEX($C$72:$O$72,,SelectedPeriodColumn) -> 0.0%
A67: Unesite ili izmenite stavku troškova u ćeliji s desne strane i mesečne iznose u ćelijama C67 do N70. Godišnji iznos se automatski izračunava u ćelijama O67 do O70 a procenat povećanja u ćelijama P67 do P70. Mini-grafikon se automatski ažurira u ćeliji Q67. Sledeće uputstvo nalazi se u ćeliji A72. | B67: Ostali troškovi | C67: =SUM(C68:C70) -> 198 | D67: =SUM(D68:D70) -> 198 | E67: 250 | F67: 253 | G67: 243 | H67: 238 | I67: 233 | J67: 258 | K67: 263 | L67: 268 | M67: 268 | N67: 268 | O67: =SUM(C67:N67) -> 2,938 | P67: =INDEX($C67:$O67,,SelectedPeriodColumn)/INDEX($C$72:$O$72,,SelectedPeriodColumn) -> 18.8%
C68: 123 | D68: 123 | E68: 123 | F68: 123 | G68: 123 | H68: 123 | I68: 123 | J68: 123 | K68: 123 | L68: 123 | M68: 123 | N68: 123 | O68: =SUM(C68:N68) -> 1,476 | P68: =INDEX($C68:$O68,,SelectedPeriodColumn)/INDEX($C$72:$O$72,,SelectedPeriodColumn) -> 11.6%
C69: 0 | D69: 0 | E69: 52 | F69: 55 | G69: 45 | H69: 40 | I69: 35 | J69: 60 | K69: 65 | L69: 70 | M69: 70 | N69: 70 | O69: =SUM(C69:N69) -> 562 | P69: =INDEX($C69:$O69,,SelectedPeriodColumn)/INDEX($C$72:$O$72,,SelectedPeriodColumn) -> 0.0%
C70: 75 | D70: 75 | E70: 75 | F70: 75 | G70: 75 | H70: 75 | I70: 75 | J70: 75 | K70: 75 | L70: 75 | M70: 75 | N70: 75 | O70: =SUM(C70:N70) -> 900 | P70: =INDEX($C70:$O70,,SelectedPeriodColumn)/INDEX($C$72:$O$72,,SelectedPeriodColumn) -> 7.1%
A72: Oznaka „Ukupni troškovi“ je u ćeliji sa desne strane. Ukupni troškovi za svaki mesec se automatski izračunavaju u ćelijama C72 do N72, godišnji troškovi u O72, i procenat povećanja u ćeliji P72. Mini-grafikon se automatski ažurira u ćeliji Q72. | B72: UKUPAN RASHOD | C72: =SUM(C40,C45,C49,C53,C59,C67) -> 1,056 | D72: 1,006 | E72: 2,233 | F72: 1,426 | G72: 1,421 | H72: 2,396 | I72: 1,501 | J72: 1,471 | K72: 2,446 | L72: 1,416 | M72: 1,491 | N72: 1,586 | O72: =SUM(C72:N72) -> 19,449 | P72: =INDEX($C72:$O72,,SelectedPeriodColumn)/INDEX($C$72:$O$72,,SelectedPeriodColumn) -> 100.0%

Sheet chart_calcs (hidden)
A1: *** Ovaj list bi trebalo da ostane skriven ***
D3: =IFERROR(LOWER(TEXT(VALUE(SelectedPeriod&" 1"),"mmmm")),"godina") -> january
D5: Dinamički naslovi grafikona
D6: ="prihod u "&D3&":" -> prihod u january: | F6: =TEXT(INDEX('Mesečni budžet za koledž'!$C$37:$O$37,,SelectedPeriodColumn),"#.## RSD") -> 
D7: ="troškovi u "&D3&":" -> troškovi u january: | F7: =TEXT(INDEX('Mesečni budžet za koledž'!$C$72:$O$72,,SelectedPeriodColumn),"#.## RSD") -> 
D8: ="protok gotovine u "&D3&":" -> protok gotovine u january: | E8: =INDEX('Mesečni budžet za koledž'!C28:O28,ScrollBarValue) -> 169 | F8: =TEXT(E8,"#.## RSD") -> 169 RSD
D12: =LOWER('Mesečni budžet za koledž'!C27) -> jan | E12: =LOWER('Mesečni budžet za koledž'!D27) -> feb | F12: =LOWER('Mesečni budžet za koledž'!E27) -> mar | G12: =LOWER('Mesečni budžet za koledž'!F27) -> apr | H12: =LOWER('Mesečni budžet za koledž'!G27) -> may | I12: =LOWER('Mesečni budžet za koledž'!H27) -> jun | J12: =LOWER('Mesečni budžet za koledž'!I27) -> jul | K12: =LOWER('Mesečni budžet za koledž'!J27) -> aug | L12: =LOWER('Mesečni budžet za koledž'!K27) -> sep | M12: =LOWER('Mesečni budžet za koledž'!L27) -> oct | N12: =LOWER('Mesečni budžet za koledž'!M27) -> nov | O12: =LOWER('Mesečni budžet za koledž'!N27) -> dec | P12: =LOWER('Mesečni budžet za koledž'!O27) -> godina
C13: Vrednost trake za pomeranje: | D13: 1
C14: Grafikon protoka novca: | D14: =IF(SelectedPeriod='Mesečni budžet za koledž'!C$31,IF('Mesečni budžet za koledž'!$C$28:$O$28>=0,'Mesečni budžet za koledž'!$C$28:$O$28,NA()),NA()) -> 69 | E14: =IF(SelectedPeriod='Mesečni budžet za koledž'!D$31,IF('Mesečni budžet za koledž'!$C$28:$O$28>=0,'Mesečni budžet za koledž'!$C$28:$O$28,NA()),NA()) ->  | F14: =IF(SelectedPeriod='Mesečni budžet za koledž'!E$31,IF('Mesečni budžet za koledž'!$C$28:$O$28>=0,'Mesečni budžet za koledž'!$C$28:$O$28,NA()),NA()) ->  | G14: =IF(SelectedPeriod='Mesečni budžet za koledž'!F$31,IF('Mesečni budžet za koledž'!$C$28:$O$28>=0,'Mesečni budžet za koledž'!$C$28:$O$28,NA()),NA()) ->  | H14: =IF(SelectedPeriod='Mesečni budžet za koledž'!G$31,IF('Mesečni budžet za koledž'!$C$28:$O$28>=0,'Mesečni budžet za koledž'!$C$28:$O$28,NA()),NA()) ->  | I14: =IF(SelectedPeriod='Mesečni budžet za koledž'!H$31,IF('Mesečni budžet za koledž'!$C$28:$O$28>=0,'Mesečni budžet za koledž'!$C$28:$O$28,NA()),NA()) ->  | J14: =IF(SelectedPeriod='Mesečni budžet za koledž'!I$31,IF('Mesečni budžet za koledž'!$C$28:$O$28>=0,'Mesečni budžet za koledž'!$C$28:$O$28,NA()),NA()) ->  | K14: =IF(SelectedPeriod='Mesečni budžet za koledž'!J$31,IF('Mesečni budžet za koledž'!$C$28:$O$28>=0,'Mesečni budžet za koledž'!$C$28:$O$28,NA()),NA()) ->  | L14: =IF(SelectedPeriod='Mesečni budžet za koledž'!K$31,IF('Mesečni budžet za koledž'!$C$28:$O$28>=0,'Mesečni budžet za koledž'!$C$28:$O$28,NA()),NA()) ->  | M14: =IF(SelectedPeriod='Mesečni budžet za koledž'!L$31,IF('Mesečni budžet za koledž'!$C$28:$O$28>=0,'Mesečni budžet za koledž'!$C$28:$O$28,NA()),NA()) ->  | N14: =IF(SelectedPeriod='Mesečni budžet za koledž'!M$31,IF('Mesečni budžet za koledž'!$C$28:$O$28>=0,'Mesečni budžet za koledž'!$C$28:$O$28,NA()),NA()) ->  | O14: =IF(SelectedPeriod='Mesečni budžet za koledž'!N$31,IF('Mesečni budžet za koledž'!$C$28:$O$28>=0,'Mesečni budžet za koledž'!$C$28:$O$28,NA()),NA()) ->  | P14: =IF(SelectedPeriod='Mesečni budžet za koledž'!O$31,IF('Mesečni budžet za koledž'!$C$28:$O$28>=0,'Mesečni budžet za koledž'!$C$28:$O$28,NA()),NA()) -> 
C15: Kumulativno: | D15: =IF(SelectedPeriod='Mesečni budžet za koledž'!C$31,IF('Mesečni budžet za koledž'!$C$28:$O$28<0,'Mesečni budžet za koledž'!$C$28:$O$28,NA()),NA()) ->  | E15: =IF(SelectedPeriod='Mesečni budžet za koledž'!D$31,IF('Mesečni budžet za koledž'!$C$28:$O$28<0,'Mesečni budžet za koledž'!$C$28:$O$28,NA()),NA()) ->  | F15: =IF(SelectedPeriod='Mesečni budžet za koledž'!E$31,IF('Mesečni budžet za koledž'!$C$28:$O$28<0,'Mesečni budžet za koledž'!$C$28:$O$28,NA()),NA()) ->  | G15: =IF(SelectedPeriod='Mesečni budžet za koledž'!F$31,IF('Mesečni budžet za koledž'!$C$28:$O$28<0,'Mesečni budžet za koledž'!$C$28:$O$28,NA()),NA()) ->  | H15: =IF(SelectedPeriod='Mesečni budžet za koledž'!G$31,IF('Mesečni budžet za koledž'!$C$28:$O$28<0,'Mesečni budžet za koledž'!$C$28:$O$28,NA()),NA()) ->  | I15: =IF(SelectedPeriod='Mesečni budžet za koledž'!H$31,IF('Mesečni budžet za koledž'!$C$28:$O$28<0,'Mesečni budžet za koledž'!$C$28:$O$28,NA()),NA()) ->  | J15: =IF(SelectedPeriod='Mesečni budžet za koledž'!I$31,IF('Mesečni budžet za koledž'!$C$28:$O$28<0,'Mesečni budžet za koledž'!$C$28:$O$28,NA()),NA()) ->  | K15: =IF(SelectedPeriod='Mesečni budžet za koledž'!J$31,IF('Mesečni budžet za koledž'!$C$28:$O$28<0,'Mesečni budžet za koledž'!$C$28:$O$28,NA()),NA()) ->  | L15: =IF(SelectedPeriod='Mesečni budžet za koledž'!K$31,IF('Mesečni budžet za koledž'!$C$28:$O$28<0,'Mesečni budžet za koledž'!$C$28:$O$28,NA()),NA()) ->  | M15: =IF(SelectedPeriod='Mesečni budžet za koledž'!L$31,IF('Mesečni budžet za koledž'!$C$28:$O$28<0,'Mesečni budžet za koledž'!$C$28:$O$28,NA()),NA()) ->  | N15: =IF(SelectedPeriod='Mesečni budžet za koledž'!M$31,IF('Mesečni budžet za koledž'!$C$28:$O$28<0,'Mesečni budžet za koledž'!$C$28:$O$28,NA()),NA()) ->  | O15: =IF(SelectedPeriod='Mesečni budžet za koledž'!N$31,IF('Mesečni budžet za koledž'!$C$28:$O$28<0,'Mesečni budžet za koledž'!$C$28:$O$28,NA()),NA()) ->  | P15: =IF(SelectedPeriod='Mesečni budžet za koledž'!O$31,IF('Mesečni budžet za koledž'!$C$28:$O$28<0,'Mesečni budžet za koledž'!$C$28:$O$28,NA()),NA()) -> 
C18: PODACI GRAFIKONA PRIHODA
C19: Finansijska pomoć (donacije, stipendije, krediti) koji su vam isplaćeni | D19: ='Mesečni budžet za koledž'!P32 -> 0.0%
C20: Plate nakon oporezivanja | D20: ='Mesečni budžet za koledž'!P33 -> 36.7%
C21: Finansijska pomoć od porodice | D21: ='Mesečni budžet za koledž'!P34 -> 16.3%
C22: Isplate iz ušteđevine | D22: ='Mesečni budžet za koledž'!P35 -> 40.8%
C23: Ostalo (podrška za dete, javnu pomoć, pokloni itd.) | D23: ='Mesečni budžet za koledž'!P36 -> 6.1%
